Cogmind - Beta 14 @@@ ROGUE MODE // 2024.09.22 @ 21:42:52 Player: cptwinky Result: Escaped singularity! Performance ------------- Evolutions (9) 4500 Regions Visited (22) 4400 Robots Destroyed (291) 1455 Value Destroyed (13942) 13942 Prototype IDs (307) 6140 Alien Tech Used (17) 3400 Bonus (55646) 55646 TOTAL SCORE: 89483 Bonus ------- High Alert Combat Kills 3151 Follower Combat Kills 2978 Registered with UFD 300 Met Zhirov 300 Used Core Reset Matrix 3000 Hacked Protovariant 1000 Acquired SGEMP 2000 Integrated Exoskeleton 5000 Destroyed MAIN.C Guards 500 Met MAIN.C 5000 Destroyed MAIN.C Shell 5000 Destroyed MAIN.C 10000 Met Architect 300 Destroyed A8 300 Destroyed A6 400 Destroyed A5 500 Destroyed Architect 15000 Win 3000 Friendly Fire -2083 Cogmind --------- Core Integrity 291/1600 Matter 405/425 Energy 196/200 System Corruption 0% Temperature Cool (0) Movement Walking (30) Location Near Former Tau Ceti IV Parts ------- > --- POWER (1) -------- (None) > --- PROPULSION (3) --- Sigix Exoskeleton > --- UTILITY (5) ------ Experimental Targeting Computer Experimental Core Analyzer Experimental Reaction Control System Advanced Phase Shifter > --- WEAPON (2) ------- Sigix Broadsword > --- INVENTORY (5) ---- Experimental Weapon Cycler Microactuators Femtoactuators Sigix Sheargun Peak State ------------ > --- POWER ------------ Zero-point Reactor > --- PROPULSION ------- Sigix Exoskeleton > --- UTILITY ---------- Experimental Core Analyzer Microactuators Advanced Reaction Control System Experimental Reaction Control System Experimental Powered Armor > --- WEAPON ----------- Sigix Broadsword > --- INVENTORY -------- Experimental Weapon Cycler Advanced Reaction Control System High-powered Transdimensional Reconstructor Sigix Sheargun Sigix Sheargun [Rating: 246] Favorites ----------- Power Improved Ion Engine Engine Improved Ion Engine Power Core Light Nuclear Core Reactor Improved Quantum Reactor Propulsion Light Treads Treads Light Treads Leg Cargo Legs Hover Unit Antigrav Array Flight Unit Nuclear Pulse Array Utility Large Storage Unit Device Seismic Detector Storage Large Storage Unit Processor A0-MCA's Component Scanner Hackware Advanced Hacking Suite Protection SHELL Armor Artifact Phase Redirector Weapon Light EM Pulse Cannon Energy Gun Small Laser Energy Cannon Light EM Pulse Cannon Ballistic Gun Advanced KE Penetrator Ballistic Cannon Hypervelocity Gauss Cannon Launcher Long-range Missile Launcher Special Weapon CPS Tube Impact Weapon Power Maul Slashing Weapon Sigix Broadsword Piercing Weapon Plasma Lance Build | -11 -10 -10 -7 -7 -5 -5 -5 -5 -5 -4 -4 -4 -4 -3 -3 -3 -2 -2 -2 -1 -1 -1 ------- Run | Yrd Mat Sub Rec Scr Fac Was Fac Upp Upp Fac Upp Upp Zhi Pro Res Tes Res Qua Sec Acc Com Ac0 Slots Evolved 18 | . . . . . 10 . . . . 2 . . . . 2 . 2 . . 2 . . Power 2 | . . . . . 1 . . . . . . . . . . . 1 . . . . . Propulsion 6 | . . . . . 4 . . . . 1 . . . . 1 . . . . . . . Utility 10 | . . . . . 5 . . . . 1 . . . . 1 . 1 . . 2 . . Weapon . | . . . . . . . . . . . . . . . . . . . . . . . Parts Attached 430 | 6 12 24 3 4 50 . 28 15 1 21 6 18 4 12 24 70 15 24 43 14 25 11 Power 41 | 1 2 1 . . 5 . 3 1 . 1 . 2 . 3 3 11 3 1 3 . 1 . Engine 12 | 1 2 1 . . 3 . 2 . . . . . . 2 . 1 . . . . . . Core 10 | . . . . . 2 . 1 1 . 1 . 2 . 1 . . 1 1 . . . . Reactor 19 | . . . . . . . . . . . . . . . 3 10 2 . 3 . 1 . Propulsion 51 | 2 . 3 . 1 10 . 1 . . 3 . . 1 . 7 12 3 4 4 . . . Treads 7 | 2 . 3 . . 2 . . . . . . . . . . . . . . . . . Leg 5 | . . . . 1 4 . . . . . . . . . . . . . . . . . Wheel . | . . . . . . . . . . . . . . . . . . . . . . . Hover 28 | . . . . . . . . . . . . . . . 6 11 3 4 4 . . . Flight 11 | . . . . . 4 . 1 . . 3 . . 1 . 1 1 . . . . . . Utility 181 | 1 4 11 2 3 19 . 11 2 . 8 3 8 1 5 8 26 7 8 27 7 18 2 Device 100 | . . 7 . 1 8 . 8 2 . 3 2 4 . 3 4 12 6 6 17 5 10 2 Storage 9 | 1 2 . . 1 2 . . . . . . . . . . 1 . 1 1 . . . Processor 23 | . . . . . 5 . . . . 1 . 1 . 1 1 6 . 1 1 . 6 . Hackware 9 | . . . . 1 1 . 1 . . 1 . . . . 1 1 1 . . 2 . . Protection 31 | . 2 4 2 . 3 . 2 . . 3 1 3 1 1 2 6 . . . . 1 . Artifact 9 | . . . . . . . . . . . . . . . . . . . 8 . 1 . Weapon 157 | 2 6 9 1 . 16 . 13 12 1 9 3 8 2 4 6 21 2 11 9 7 6 9 Energy Gun 16 | . 3 . . . . . . . . . . . . . . . . . 1 4 4 4 Energy Cannon 25 | . 2 6 1 . 5 . 1 3 . 1 . . . . . 1 . 1 3 . . 1 Ballistic Gun 21 | 2 . . . . 1 . . . . . 2 4 1 3 3 3 . 2 . . . . Ballistic Cannon 15 | . . . . . 1 . 1 6 1 4 1 . . . 1 . . . . . . . Launcher 28 | . 1 . . . 5 . 4 3 . 4 . 4 1 1 2 2 1 . . . . . Special Weapon 13 | . . 3 . . 1 . 2 . . . . . . . . 5 . 1 1 . . . Impact Weapon 8 | . . . . . 3 . 5 . . . . . . . . . . . . . . . Slashing Weapon 24 | . . . . . . . . . . . . . . . . 3 1 7 4 3 2 4 Piercing Weapon 7 | . . . . . . . . . . . . . . . . 7 . . . . . . Special Melee Weapon . | . . . . . . . . . . . . . . . . . . . . . . . Unidentified Prototypes 4 | . . . . . . . . 1 . . . . 1 . . . . 1 . . 1 . Corrupted Parts 5 | . . . . . . . . . . . . . . . . 5 . . . . . . System Corruption 24 | . . . . . . . . . . . . . . . . 24 . . . . . . Parts Lost 38 | . 2 . . . 6 . 2 1 . 1 . 3 . 1 6 14 . . 1 . 1 . Power 11 | . . . . . 3 . . . . . . 2 . 1 2 3 . . . . . . Propulsion 6 | . . . . . 1 . . . . . . . . . 2 3 . . . . . . Utility 12 | . 1 . . . 1 . . 1 . . . 1 . . 1 5 . . 1 . 1 . Weapon 9 | . 1 . . . 1 . 2 . . 1 . . . . 1 3 . . . . . . Highest Loss Streak 6 | . 1 . . . 3 . 1 1 . 1 . 3 . 1 6 4 . . 1 . 1 . To Critical Strikes 1 | . . . . . . . . . . . . . . . . 1 . . . . . . Average Slot Usage (%) 86 | . 98 100 100 85 77 88 84 88 88 81 78 80 67 82 80 84 80 80 75 64 70 64 Engine 7 | . 14 14 14 12 2 11 9 5 5 5 5 1 . 5 1 . . . . . . . Core 1 | . . . . . 4 . 1 5 5 5 5 5 5 2 1 . 1 3 3 . . . Reactor 2 | . . . . . . . . . . . . . . . 1 7 8 8 8 9 9 . Treads 10 | . 28 28 28 10 4 . . . . . . . . . . . . . . . . . Leg 3 | . . . . 7 11 . . . . . . . . . . . . . 1 9 9 9 Hover 3 | . . . . . . . . . . . . . . . 11 23 26 25 23 . . . Flight 4 | . . . . . 1 23 23 23 23 21 21 21 21 21 12 1 . . . . . . Device 9 | . . 12 4 5 14 17 10 11 11 6 9 5 1 4 4 6 7 8 4 21 18 27 Storage 8 | . 14 14 14 12 4 5 5 5 5 5 5 5 5 5 4 4 4 4 4 9 5 . Processor 8 | . . . . . 11 17 17 17 17 19 21 22 26 21 19 23 13 13 14 . 14 18 Hackware 3 | . . . . 6 5 . 5 5 5 5 5 5 5 5 8 1 4 4 3 5 1 . Protection 3 | . 12 1 9 6 3 . . . . 3 . 2 2 5 4 3 4 4 3 . 3 . Energy Cannon 11 | . . 26 28 24 6 . . . . . . . . . . . . . . . . . Ballistic Gun 1 | . 14 . . . . . . . . . . 9 . 9 7 1 . . . . . . Slashing Weapon 1 | . . . . . . . . . . . . . . . . 1 3 5 4 7 7 6 Peak Build Rating 246 | 6 11 15 17 40 108 94 98 97 96 109 117 117 113 122 141 170 191 207 226 232 246 243 Average Rating 86 | 4 8 11 15 30 80 94 94 96 95 105 107 114 99 119 121 144 184 194 206 225 229 234 On Entrance 109 | . 6 11 14 17 40 94 94 96 95 96 105 116 113 113 121 138 169 185 207 223 224 243 Naked Turns . | . . . . . . . . . . . . . . . . . . . . . . . Heaviest Build 116 | 11 38 40 39 39 75 34 40 38 38 44 45 45 40 45 59 78 116 110 108 51 56 32 Greatest Support 130 | 40 40 40 40 55 91 42 42 38 38 45 45 45 45 45 69 101 123 118 130 80 80 80 Greatest Overweight (x) 2 | . . . . . 2 . 1 . . 1 . . . . 2 . 1 1 1 . . . Average Overweight (x) . | . . . . . . . . . . . . . . . . . . . . . . . Largest Inventory Capacity 15 | 8 15 15 15 15 15 10 10 10 10 10 10 10 10 10 10 10 10 10 10 10 10 5 Average Capacity 12 | 7 11 15 15 15 14 10 10 10 10 10 10 10 10 10 10 10 10 10 9 10 8 5 Most Carried 15 | 8 15 15 15 15 15 10 10 10 10 10 10 10 10 10 10 10 10 10 10 10 10 5 Average Carried 11 | 4 10 14 14 13 13 10 9 9 10 9 9 10 9 9 8 9 9 9 9 9 7 3 Final Capacity 15 | 8 15 15 15 15 10 10 10 10 10 10 10 10 10 10 10 10 10 10 10 10 5 5 Final Carried 15 | 8 15 15 15 15 10 10 10 10 10 10 10 10 10 10 10 10 10 10 8 9 5 4 Class Distribution -------------------- 37% | Mutant 16% | Scavenger-Mutant 11% | Alien-Sigix 10% | Sprinter 4% | Scavenger-Gladiator 4% | Alien-Gladiator 4% | Commander-Sprinter 3% | Infiltrator-Mutant Dominant Class ---------------- Mutant | -10/Materials Mutant | -10/Subcaves Mutant | -7/Recycling Mutant | -7/Scraptown Infiltrator-Mutant | -5/Factory Sprinter | -5/Waste Sprinter | -5/Factory Sprinter | -5/Upper Caves Sprinter | -5/Upper Caves Sprinter | -4/Factory Commander-Sprinter | -4/Upper Caves Commander-Sprinter | -4/Upper Caves Sprinter | -4/Zhirov Scavenger-Sprinter | -3/Proximity Caves Scavenger-Mutant | -3/Research Scavenger-Mutant | -3/Testing Scavenger-Gladiator | -2/Research Gladiator | -2/Quarantine Alien-Gladiator | -2/Section 7 Alien-Sigix | -1/Access Alien-Sigix | -1/Command Alien-Sigix | -1/Access_0 Resources | -11 -10 -10 -7 -7 -5 -5 -5 -5 -5 -4 -4 -4 -4 -3 -3 -3 -2 -2 -2 -1 -1 -1 ----------- Run | Yrd Mat Sub Rec Scr Fac Was Fac Upp Upp Fac Upp Upp Zhi Pro Res Tes Res Qua Sec Acc Com Ac0 Matter Collected 8705 | 276 375 260 30 40 1541 . 453 560 38 571 293 390 . 317 452 1327 290 277 390 373 332 120 Remotely . | . . . . . . . . . . . . . . . . . . . . . . . Salvage Created 16180 | 19 573 495 75 . 1823 . 929 287 . 715 132 541 . 241 714 2713 480 853 2196 259 2625 510 Parts 721 | 3 34 20 6 . 78 . 25 14 . 22 8 22 . 14 37 155 22 31 90 8 93 39 Haulers Intercepted 13 | . 1 . . . 3 . 5 . . 3 . . . . . 1 . . . . . . Recyclers Shooed 6 | 1 1 . . . 1 . . . . . . . . . 1 . 1 . 1 . . . Parts Field Recycled . | . . . . . . . . . . . . . . . . . . . . . . . Retrieved Matter . | . . . . . . . . . . . . . . . . . . . . . . . Parts Self-Destructed 52 | . . 6 . . . . . 6 . . 17 16 . 7 . . . . . . . . Prevented 4 | . . 3 . . . . . . . . 1 . . . . . . . . . . . Kills | -11 -10 -10 -7 -7 -5 -5 -5 -5 -5 -4 -4 -4 -4 -3 -3 -3 -2 -2 -2 -1 -1 -1 ------- Run | Yrd Mat Sub Rec Scr Fac Was Fac Upp Upp Fac Upp Upp Zhi Pro Res Tes Res Qua Sec Acc Com Ac0 Combat Hostiles Destroyed 210 | . 18 11 1 . 33 . 5 12 . 7 2 11 . 3 13 29 9 6 25 . 21 4 Melee 79 | . . . . . . . . . . . . . . . . 22 6 5 25 . 18 3 Guns 33 | . 16 . . . . . . . . . . 6 . . 4 3 . 1 . . 3 . Cannons 37 | . . 7 1 . 17 . 1 3 . 3 2 . . . . 3 . . . . . . AOE 52 | . 2 . . . 13 . 3 9 . 4 . 5 . 3 9 1 3 . . . . . Classes Destroyed 23 | 1 4 2 . . 5 . 2 2 . . . 1 . . . 3 1 1 . . 1 . Worker 13 | . . . . . . . 1 . . 3 . . . . . . 3 . . . 6 . Builder 10 | . . . . . 2 . . . . 2 . . . . 3 1 1 . 1 . . . Tunneler 3 | 1 . . . . 1 . . . . . . . . . 1 . . . . . . . Hauler 13 | . 1 . . . 3 . 5 . . 3 . . . . . 1 . . . . . . Recycler 13 | . . . . . 3 . 1 . . 1 . . . . 1 2 1 1 1 2 . . Carrier 1 | . . . . . . . . . . . . . . . . . . 1 . . . . Mechanic 4 | . . . . . 1 . . . . 1 . . . . . 1 . . . . 1 . Operator 6 | . 1 . . . 1 . 2 . . . . . . . . 2 . . . . . . Watcher 11 | . . . . . . . 3 . . 1 . . . . 2 2 1 1 . . 1 . Swarmer 63 | . 9 2 . . 11 . . 9 . 4 . 7 . 3 4 1 4 . 3 . 6 . Cutter 4 | . . . . . . . . . . . . . . . . . 1 . . . 3 . Grunt 65 | . 9 2 . . 12 . 4 . . . 2 1 . . 4 10 1 6 13 . 1 . Duelist 5 | . . . . . 2 . . . . . . . . . . 2 . . 1 . . . Researcher 2 | . . . . . . . . . . . . . . . . 1 . . 1 . . . Sentry 16 | . . 1 1 . 4 . . 1 . 1 . . . . . . 2 . 5 . 1 . Hunter 11 | . . . . . . . . 1 . 2 . 2 . . 4 2 . . . . . . Programmer 25 | . . . . . 4 . 1 . . . . 1 . . 1 11 1 . 2 . 4 . S7 Guard 1 | . . . . . . . . . . . . . . . . . . . 1 . . . M Guard 2 | . . . . . . . . . . . . . . . . . . . . . 2 . M Shell/Atk 1 | . . . . . . . . . . . . . . . . . . . . . 1 . Combat Programmer 1 | . . . . . . . . . . . . . . . . . . . . . 1 . Striker 2 | . . . . . . . . . . . . . . . . 2 . . . . . . Alpha 7 1 | . . . . . . . . . . . . . . . . 1 . . . . . . Subdweller 6 | . . 6 . . . . . . . . . . . . . . . . . . . . Scrapoid 1 | . . . . . . . . . . . . 1 . . . . . . . . . . Assembled 3 | . . . . . . . . . . . . . . . . . . . . . 3 . Butcher 1 | . . . . . . . . . . . . 1 . . . . . . . . . . Mutant 1 | . . . . . . . . 1 . . . . . . . . . . . . . . Sapper 3 | . . . . . . . . . . . . . . 3 . . . . . . . . Best Kill Streak 11 | 1 5 3 1 . 8 . 4 5 . 5 2 3 . 3 9 6 11 3 4 1 4 1 Combat Bots Only 7 | . 5 3 1 . 7 . 2 5 . 4 2 3 . 3 6 5 7 3 4 . 4 1 Max Kills in Single Turn 6 | 1 2 1 1 . 4 . 1 3 . 4 1 2 . 2 3 1 6 1 1 1 2 1 Gunslinging 1 | . . . . . . . . . . . . 1 . . . . . . . . . . Exploded 4 | . 2 . . . 3 . 1 3 . 4 . 2 . 2 3 1 2 . . . . . Melee 1 | . . . . . . . . . . . . . . . . 1 1 1 1 . 1 1 Uniques/NPCs Destroyed 6 | . . . . . . . . . . . . . . . . . . . . . 2 4 MAIN.C Shell (-1/Command) MAIN.C (-1/Command) A8 (-1/Access_0) A6 (-1/Access_0) A5 (-1/Access_0) Architect (-1/Access_0) Combat | -11 -10 -10 -7 -7 -5 -5 -5 -5 -5 -4 -4 -4 -4 -3 -3 -3 -2 -2 -2 -1 -1 -1 -------- Run | Yrd Mat Sub Rec Scr Fac Was Fac Upp Upp Fac Upp Upp Zhi Pro Res Tes Res Qua Sec Acc Com Ac0 Hostile Shots Fired 1878 | . 57 36 18 . 164 . 16 14 . 28 5 53 . 17 109 247 139 44 161 . 281 489 Missed 883 | . 12 14 6 . 49 . 7 7 . 19 3 23 . 5 41 102 65 17 56 . 104 353 Intercepted 13 | . . . . . . . . . . . . . . . . . . . . . 13 . Damage Taken 19062 | . 446 435 93 . 2615 . 207 147 . 144 32 475 . 290 1401 3481 1296 401 2938 . 2564 2097 Core 3744 | . 20 44 10 . 492 . 18 27 . 28 . . . 68 241 529 138 12 529 . 877 711 Absorbed by Shields 1795 | . . . . . . . . . . 49 . 8 . . . . 620 217 . . 901 . Redirected to Core 290 | . . . . . . . . . . . . . . . . . . . 290 . . . Redirected to Shielding 149 | . . . . . . . . . . . . . . . . 149 . . . . . . Ignored by Resistances 5553 | . . . . . . . . . . . . . . . . . . . . . 3445 2108 Regen/Repaired (Parts) 3903 | . . . . . 10 . 147 . . . . . . . . 235 370 676 2399 . 55 11 Core Remaining (%) 57 | 100 . . . 70 . . . . 46 . . . . 91 . 40 . . 38 . . 18 Volleys Fired 546 | 6 49 61 5 . 91 . 11 44 . 58 15 23 . 12 49 55 2 6 7 5 27 20 Largest 2 | 2 2 2 2 . 2 . 1 1 . 1 1 2 . 2 2 2 1 1 1 1 2 2 Hottest 200 | 40 80 112 112 . 173 . 90 90 . 61 61 70 . 70 70 130 20 130 130 100 200 200 Shots Fired 787 | 12 97 99 9 . 137 . 11 42 . 58 15 39 . 21 68 77 2 6 7 5 52 30 Gun 358 | 12 96 . . . . . . . . . . 32 . 18 58 55 . 4 1 5 52 25 Cannon 347 | . . 85 9 . 116 . 5 36 . 53 15 . . . . 17 . 1 5 . . 5 Launcher 63 | . 1 . . . 21 . 6 6 . 5 . 7 . 3 10 2 2 . . . . . Special 19 | . . 14 . . . . . . . . . . . . . 3 . 1 1 . . . Kinetic 400 | 12 49 . . . 52 . 3 33 . 53 15 32 . 18 58 71 . 4 . . . . Thermal 139 | . 47 15 . . 65 . 2 3 . . . . . . . 1 . 1 5 . . . Explosive 55 | . 1 . . . 13 . 6 6 . 5 . 7 . 3 10 2 2 . . . . . Electromagnetic 105 | . . 84 9 . 7 . . . . . . . . . . . . . . . . 5 Slashing 83 | . . . . . . . . . . . . . . . . . . . 1 5 52 25 Robot Hit Streak 20 | 3 15 15 4 . 19 . 7 20 . 13 15 14 . 18 8 12 1 6 1 . 7 8 Robot Miss Streak 6 | 5 2 3 2 . 6 . 1 2 . 3 1 2 . 1 4 2 1 2 1 . 4 3 Penetration Max 1 | . . . . . 1 . . . . 1 . 1 . . 1 1 . 1 . . 1 1 Secondary Targets 1 | . . . . . . . . . . . . 1 . . . . . . . . . . Max Gunslinging Chain 1 | . . . . . . . . . . . . 1 . . . . . . . . . . Shots Hit Robots 811 | 6 69 42 6 . 93 . 19 30 . 49 14 22 . 15 30 144 23 27 92 2 88 40 Core Hits 471 | 2 29 13 2 . 75 . 9 15 . 27 4 29 . 9 43 68 21 11 47 2 49 16 Critical Kills 47 | . . . . . 10 . 3 3 . 8 1 4 . 3 6 7 . 2 . . . . Critical Parts Destroyed 66 | 1 . . . . 10 . 3 . . 15 3 4 . . 7 19 . 4 . . . . Critical Strikes 149 | 1 . 1 . . 21 . 6 4 . 23 4 8 . 5 13 39 1 10 9 . 4 . Meltdown 1 | . . . . . 1 . . . . . . . . . . . . . . . . . Destroy 109 | 1 . . . . 17 . 1 4 . 23 4 8 . 5 13 27 . 6 . . . . Corrupt 2 | . . 1 . . 1 . . . . . . . . . . . . . . . . . Smash 7 | . . . . . 2 . 5 . . . . . . . . . . . . . . . Sever 21 | . . . . . . . . . . . . . . . . 3 1 4 9 . 4 . Impale 9 | . . . . . . . . . . . . . . . . 9 . . . . . . Melee Attacks 504 | . . . . . 14 . 37 . . . . . . . . 119 38 37 121 7 93 38 Impact 51 | . . . . . 14 . 37 . . . . . . . . . . . . . . . Slashing 362 | . . . . . . . . . . . . . . . . 37 30 36 121 7 93 38 Piercing 91 | . . . . . . . . . . . . . . . . 82 8 1 . . . . Sneak Attacks 38 | . . . . . 2 . 9 . . . . . . . . 7 6 2 4 2 6 . Combat Hostiles 5 | . . . . . . . . . . . . . . . . 1 3 1 . . . . Follow-up Attacks 18 | . . . . . . . . . . . . . . . . 8 6 4 . . . . Damage Inflicted 54688 | 62 999 903 118 . 4912 . 1768 904 . 1426 163 1510 . 892 2103 7378 2348 1517 9423 704 12937 4621 Guns 5947 | 57 849 . . . . . . . . . . 827 . 412 342 468 . 49 . . 2202 741 Cannons 4368 | . . 875 118 . 1990 . 36 132 . 710 163 . . . . 204 . . . . . 140 Explosions 8587 | . 138 28 . . 2468 . 422 772 . 716 . 683 . 480 1761 315 804 . . . . . Melee 35692 | . . . . . 453 . 1310 . . . . . . . . 6391 1544 1468 9423 704 10659 3740 Ramming 94 | 5 12 . . . 1 . . . . . . . . . . . . . . . 76 . Kinetic 4875 | 57 479 . . . 996 . 36 132 . 710 163 827 . 412 342 672 . 49 . . . . Thermal 1943 | . 403 28 . . 1462 . . . . . . . . . 50 . . . . . . . Explosive 7766 | . 105 . . . 1885 . 422 772 . 716 . 683 . 480 1584 315 804 . . . . . Electromagnetic 1375 | . . 875 118 . 115 . . . . . . . . . 127 . . . . . . 140 Impact 1763 | . . . . . 453 . 1310 . . . . . . . . . . . . . . . Slashing 32463 | . . . . . . . . . . . . . . . . 2262 1264 1468 9423 704 12861 4481 Piercing 4409 | . . . . . . . . . . . . . . . . 4129 280 . . . . . Highest Corruption 26 | . . . . . 2 10 12 12 12 . . 3 3 3 2 26 2 2 . . . . Average Corruption 7 | . . . . . 1 4 10 12 12 . . 2 3 3 1 6 1 2 . . . . Corruption Purged 2 | . . . . . . . . . . . . . . . . 2 . . . . . . Corruption Blocked . | . . . . . . . . . . . . . . . . . . . . . . . Effects 139 | . . . . . 4 1 43 21 11 . . 7 . 7 5 33 2 5 . . . . Message Errors 34 | . . . . . . . 10 9 5 . . 1 . 1 . 6 . 2 . . . . Matter Fused 30 | . . . . . 1 . 9 2 2 . . 2 . 3 . 9 . 2 . . . . Heat Flow Errors 19 | . . . . . 1 . 7 . 1 . . 2 . 1 1 5 . 1 . . . . Energy Discharges 14 | . . . . . . . 4 2 2 . . . . 2 1 3 . . . . . . Parts Rejected 2 | . . . . . . . 1 . . . . 1 . . . . . . . . . . Parts Fused 2 | . . . . . . . . . 1 . . . . . . 1 . . . . . . Data Loss (minor) 19 | . . . . . 1 . 7 2 . . . 1 . . 2 5 1 . . . . . Data Loss (major) 7 | . . . . . 1 . 2 2 . . . . . . . 1 1 . . . . . Misfires 1 | . . . . . . . . . . . . . . . . 1 . . . . . . Alerts 7 | . . . . . . . 3 2 . . . . . . 1 1 . . . . . . Misdirections 1 | . . . . . . 1 . . . . . . . . . . . . . . . . Weapon Failures 3 | . . . . . . . . 2 . . . . . . . 1 . . . . . . Overload Shots . | . . . . . . . . . . . . . . . . . . . . . . . Overflow Damage 5106 | . . . . . 234 . 555 11 . 15 6 . . 21 89 1264 217 204 910 . 1347 233 Projectiles 77 | . . . . . 71 . . . . . 6 . . . . . . . . . . . Explosions 245 | . . . . . 57 . 15 11 . 15 . . . 21 89 5 32 . . . . . Melee 4784 | . . . . . 106 . 540 . . . . . . . . 1259 185 204 910 . 1347 233 Knockbacks 15 | . . . . . 6 . 2 . . 4 2 . . . . 1 . . . . . . Impact 2 | . . . . . . . 2 . . . . . . . . . . . . . . . Kinetic 13 | . . . . . 6 . . . . 4 2 . . . . 1 . . . . . . Secondary . | . . . . . . . . . . . . . . . . . . . . . . . Self-Inflicted Damage 324 | . . . . . 196 . . 12 . 36 . . . 17 6 . 57 . . . . . Shots 12 | . . . . . 7 . . 1 . 1 . . . 1 1 . 1 . . . . . Rammed 5 | 2 3 . . . . . . . . . . . . . . . . . . . . . Targets Rammed 7 | 2 3 . . . 1 . . . . . . . . . . . . . . . 1 . Kicked 2 | . . . . . 1 . . . . . . . . . . . . . . . 1 . Crushed . | . . . . . . . . . . . . . . . . . . . . . . . Highest Temperature 300 | . 128 81 300 . 175 2 270 168 237 144 96 232 . 102 148 212 6 175 166 . 48 . Average Temperature 52 | . 40 20 132 . 62 2 89 39 122 50 35 40 . 66 32 48 4 111 21 . 48 . Received Heat Transfer 2410 | . 174 99 24 . 768 . 36 9 . 10 9 9 . . 94 318 184 76 315 . 210 75 Siege Activations . | . . . . . . . . . . . . . . . . . . . . . . . Robots Corrupted 17 | . . 4 . . 3 . 8 . . . . . . . . . . . . . 1 1 Combat Hostiles 8 | . . 4 . . 2 . 1 . . . . . . . . . . . . . . 1 Parts Fried 33 | . . 9 1 . 4 . 12 . . . . . . . . . . . . . 1 6 Impact Corruptions 22 | . . . . . 3 . 17 . . . . . . . . . . . . . 2 . Robots Melted 1 | . . . . . 1 . . . . . . . . . . . . . . . . . Combat Hostiles 1 | . . . . . 1 . . . . . . . . . . . . . . . . . Parts Melted 5 | . 1 . . . 3 . . . . . . 1 . . . . . . . . . . Heat Transferred 3002 | . 825 50 . . 2027 . . . . . . . . . 100 . . . . . . . Parts Sabotaged 2 | . . . . . . . . . . . . . . . . . . . 2 . . . Parts Stolen . | . . . . . . . . . . . . . . . . . . . . . . . Parts Stripped . | . . . . . . . . . . . . . . . . . . . . . . . Power Chain Reactions 2 | . . 1 . . . . . . . . . . . . 1 . . . . . . . Alert | -11 -10 -10 -7 -7 -5 -5 -5 -5 -5 -4 -4 -4 -4 -3 -3 -3 -2 -2 -2 -1 -1 -1 ------- Run | Yrd Mat Sub Rec Scr Fac Was Fac Upp Upp Fac Upp Upp Zhi Pro Res Tes Res Qua Sec Acc Com Ac0 Peak Influence 1411 | 5 366 . 62 . 1113 434 1055 . . 1411 . . . . 766 561 961 584 1135 729 1135 . Initial 672 | . 3 . 7 . . 389 303 . . 358 . . . . 99 276 291 463 278 672 289 . Average 495 | 1 170 . 19 . 662 403 710 . . 778 . . . . 484 421 448 474 863 634 556 . Maximum Alert Level 4 | . 1 . . . 4 2 3 . . 4 . . . . 3 2 3 2 4 3 4 . Low Security (%) 20 | 100 53 . 100 . 19 . . . . . . . . . 15 . . . . . . . Level 1 17 | . 46 . . . 10 40 5 . . 33 . . . . 14 40 62 . 5 . 10 . Level 2 29 | . . . . . 10 59 53 . . 12 . . . . 58 59 23 99 14 89 24 . Level 3 30 | . . . . . 58 . 41 . . 26 . . . . 11 . 14 . 74 10 62 . Level 4 1 | . . . . . . . . . . 27 . . . . . . . . 5 . 1 . Level 5 . | . . . . . . . . . . . . . . . . . . . . . . . High Security . | . . . . . . . . . . . . . . . . . . . . . . . Max Security . | . . . . . . . . . . . . . . . . . . . . . . . Squads Dispatched 60 | . 3 . . . 7 . 7 . . 7 . . . . 1 13 3 1 9 . 9 . Investigation 14 | . 2 . . . 2 . 2 . . 1 . . . . . 3 1 . . . 3 . Extermination 11 | . . . . . 3 . 1 . . . . . . . . 3 1 . 1 . 2 . Reinforcement 25 | . 1 . . . 1 . 3 . . 5 . . . . 1 5 1 . 4 . 4 . Assault 9 | . . . . . 1 . 1 . . 1 . . . . . 2 . 1 3 . . . Garrison 1 | . . . . . . . . . . . . . . . . . . . 1 . . . Intercept . | . . . . . . . . . . . . . . . . . . . . . . . Searches Triggered 1 | . . . . . . . 1 . . . . . . . . . . . . . . . Construction Impeded 5 | . . . . . . . 1 . . 2 . . . . 1 . . . 1 . . . Haulers Reinforced 5 | . . . . . 1 . 1 . . 3 . . . . . . . . . . . . Active Scanning Responses . | . . . . . . . . . . . . . . . . . . . . . . . Cargo Convoy Interrupts . | . . . . . . . . . . . . . . . . . . . . . . . Stealth | -11 -10 -10 -7 -7 -5 -5 -5 -5 -5 -4 -4 -4 -4 -3 -3 -3 -2 -2 -2 -1 -1 -1 --------- Run | Yrd Mat Sub Rec Scr Fac Was Fac Upp Upp Fac Upp Upp Zhi Pro Res Tes Res Qua Sec Acc Com Ac0 Distress Signals 38 | . 3 . 1 . 1 . 5 . . 1 . . . . 2 3 2 2 . . 18 . Communications Jammed 35 | . . . . . 1 . . . . . . . . . 12 11 4 7 . . . . Distress Signals 34 | . . . . . . . . . . . . . . . 12 11 4 7 . . . . Times Spotted 459 | . 28 17 1 . 49 5 30 9 . 26 2 14 . 6 31 38 43 18 48 . 64 30 Peak Tracking Total 27 | . 4 6 1 . 5 5 5 3 . 5 2 4 . 4 8 5 20 4 6 . 27 13 Tactical Retreats 59 | . 1 1 . . 3 . 9 1 . . 1 . . 3 6 2 4 3 10 . 7 8 Traps | -11 -10 -10 -7 -7 -5 -5 -5 -5 -5 -4 -4 -4 -4 -3 -3 -3 -2 -2 -2 -1 -1 -1 ------- Run | Yrd Mat Sub Rec Scr Fac Was Fac Upp Upp Fac Upp Upp Zhi Pro Res Tes Res Qua Sec Acc Com Ac0 Traps Triggered 19 | . 1 1 . . 1 . 3 . . 2 . . . . 2 3 2 2 1 . 1 . Indirectly . | . . . . . . . . . . . . . . . . . . . . . . . Trap Hack Attempts . | . . . . . . . . . . . . . . . . . . . . . . . Triggered . | . . . . . . . . . . . . . . . . . . . . . . . Disarmed . | . . . . . . . . . . . . . . . . . . . . . . . Reprogrammed . | . . . . . . . . . . . . . . . . . . . . . . . Reused 1 | . . . 1 . . . . . . . . . . . . . . . . . . . Traps Extracted . | . . . . . . . . . . . . . . . . . . . . . . . Installed 1 | . . . 1 . . . . . . . . . . . . . . . . . . . Triggered 8 | . . . 1 . . . . . . . 1 . . . 1 . . . . . 5 . Most Traps Carried 1 | . . 1 1 . . . . . . . . . . . . . . . . . . . Time Bombs Activated 1 | . . . . . . . . . . . . . . . 1 . . . . . . . Exploded 1 | . . . . . . . . . . . . . . . 1 . . . . . . . Machines | -11 -10 -10 -7 -7 -5 -5 -5 -5 -5 -4 -4 -4 -4 -3 -3 -3 -2 -2 -2 -1 -1 -1 ---------- Run | Yrd Mat Sub Rec Scr Fac Was Fac Upp Upp Fac Upp Upp Zhi Pro Res Tes Res Qua Sec Acc Com Ac0 Machines Disabled 52 | . 3 1 . . 5 . 3 2 . 4 . . . . 2 4 . 4 12 2 5 5 Max in Single Turn 3 | . 3 1 . . 1 . . 1 . . . . . . 2 1 . 1 1 1 1 1 Garrison Access 5 | . . . . . 1 . 1 . . . . . . . . . 1 1 1 . . . Phase Generator 1 | . . . . . . . . . . . . . . . . . . . . . 1 . Machines Repaired . | . . . . . . . . . . . . . . . . . . . . . . . Machines Dismantled . | . . . . . . . . . . . . . . . . . . . . . . . Machines Sabotaged . | . . . . . . . . . . . . . . . . . . . . . . . Overloaded Fab Kills . | . . . . . . . . . . . . . . . . . . . . . . . Hacking | -11 -10 -10 -7 -7 -5 -5 -5 -5 -5 -4 -4 -4 -4 -3 -3 -3 -2 -2 -2 -1 -1 -1 --------- Run | Yrd Mat Sub Rec Scr Fac Was Fac Upp Upp Fac Upp Upp Zhi Pro Res Tes Res Qua Sec Acc Com Ac0 Machines Accessed 130 | . 6 1 9 2 14 . 22 . 1 4 . 3 4 . 4 11 11 8 10 6 14 . Terminals 76 | . 4 . 6 . 6 . 10 . . 3 . . . . 3 7 5 6 8 6 12 . Fabricators 10 | . . . . . 2 . 5 . . . . . . . 1 1 1 . . . . . Repair Stations 9 | . . . . . 3 . 3 . . . . . . . . 2 . 1 . . . . Recycling Units 15 | . 2 . 3 . 1 . 2 . . 1 . . . . . . 4 . . . 2 . Scanalyzers 2 | . . . . . . . 1 . . . . . . . . . . . 1 . . . Garrison Access 7 | . . . . . 2 . 1 . . . . . . . . 1 1 1 1 . . . Total Hacks 298 | . 20 1 25 5 29 . 49 . 1 8 . 9 17 . 10 28 24 16 17 10 29 . Successful 144 | . 9 1 9 5 10 . 23 . 1 5 . 9 17 . 3 9 8 8 10 4 13 . Failed 154 | . 11 . 16 . 19 . 26 . . 3 . . . . 7 19 16 8 7 6 16 . Catastrophic 34 | . 3 . 4 . 4 . 5 . . . . . . . 1 3 2 1 3 2 6 . Database Lockouts . | . . . . . . . . . . . . . . . . . . . . . . . Manual 104 | . 13 . 15 . 8 . 16 . . 3 . . . . . 13 7 7 5 2 15 . Terminals 172 | . 15 . 14 . 15 . 19 . . 7 . . . . 8 18 13 14 15 10 24 . Fabricators 19 | . . . . . 4 . 9 . . . . . . . 2 2 2 . . . . . Repair Stations 24 | . . . . . 6 . 12 . . . . . . . . 5 . 1 . . . . Recycling Units 35 | . 5 . 11 . 1 . 5 . . 1 . . . . . . 7 . . . 5 . Scanalyzers 3 | . . . . . . . 2 . . . . . . . . . . . 1 . . . Garrison Access 12 | . . . . . 3 . 2 . . . . . . . . 3 2 1 1 . . . Terminal Hacks 89 | . 5 1 1 5 6 . 7 . 1 3 . 9 17 . 3 5 3 4 7 4 8 . Record 16 | . . . . 4 . . . . . . . 7 5 . . . . . . . . . Part Schematic 4 | . . . . . . . . . . . . . 4 . . . . . . . . . Robot Analysis 11 | . 4 . . . . . 1 . . . . . 4 . . . . . 1 . 1 . Prototype ID Bank 7 | . . . 1 . 1 . . . . 1 . . 4 . . . . . . . . . Open Door 9 | . . . . . . . . . 1 . . 2 . . . 1 . . 2 2 1 . Level Access Points 1 | . . . . . . . . . . . . . . . . . . . 1 . . . Branch Access Points 4 | . . . . . 1 . 1 . . 1 . . . . . . 1 . . . . . Machine Index 1 | . . . . . . . . . . . . . . . . . . . . . 1 . Terminal Index 2 | . . . . . . . . . . . . . . . . . . 1 . 1 . . Alert Level 1 | . . . . . . . . . . . . . . . . . . . . . 1 . Unreport Threat 7 | . . . . . . . . . . . . . . . 1 1 1 1 2 . 1 . Locate Traps 11 | . . . . . 1 . 3 . . 1 . . . . . 1 1 2 . 1 1 . Recall Extermination 1 | . . . . . 1 . . . . . . . . . . . . . . . . . Hauler Manifests 2 | . 1 . . . . . . . . . . . . . 1 . . . . . . . Zone Layout 5 | . . . . . 2 . 2 . . . . . . . 1 . . . . . . . Derelict Proto ID Bank 2 | . . 1 . 1 . . . . . . . . . . . . . . . . . . Protovariant Controls 2 | . . . . . . . . . . . . . . . . 2 . . . . . . Activate Exoskeleton 1 | . . . . . . . . . . . . . . . . . . . 1 . . . Disengage Seal 2 | . . . . . . . . . . . . . . . . . . . . . 2 . Fabricator Hacks 5 | . . . . . 1 . 3 . . . . . . . . . 1 . . . . . Network Status 3 | . . . . . 1 . 1 . . . . . . . . . 1 . . . . . Build 2 | . . . . . . . 2 . . . . . . . . . . . . . . . Repair Station Hacks 9 | . . . . . 2 . 5 . . . . . . . . 2 . . . . . . Scan Component 5 | . . . . . 1 . 3 . . . . . . . . 1 . . . . . . Repair 3 | . . . . . . . 2 . . . . . . . . 1 . . . . . . Refit 1 | . . . . . 1 . . . . . . . . . . . . . . . . . Recycling Unit Hacks 6 | . 3 . . . . . 1 . . . . . . . . . 2 . . . . . Retrieve Components 6 | . 3 . . . . . 1 . . . . . . . . . 2 . . . . . Scanalyzer 1 | . . . . . . . 1 . . . . . . . . . . . . . . . Insert Component 1 | . . . . . . . 1 . . . . . . . . . . . . . . . Garrison Access Hacks 4 | . . . . . 1 . 1 . . . . . . . . . 1 1 . . . . Seal Access 4 | . . . . . 1 . 1 . . . . . . . . . 1 1 . . . . Unauthorized Hacks 30 | . 1 . 8 . . . 5 . . 2 . . . . . 2 1 3 3 . 5 . Terminals 17 | . 1 . 4 . . . 1 . . 1 . . . . . . 1 3 2 . 4 . Track 2 | . . . . . . . . . . . . . . . . . . 1 1 . . . Assimilate 2 | . . . . . . . 1 . . . . . . . . . . . . . 1 . Botnet 4 | . . . . . . . . . . 1 . . . . . . 1 1 . . 1 . Disrupt 4 | . 1 . . . . . . . . . . . . . . . . 1 . . 2 . Operators 1 | . . . . . . . . . . . . . . . . . . . 1 . . . Skim 4 | . . . 4 . . . . . . . . . . . . . . . . . . . Fabricators 3 | . . . . . . . 2 . . . . . . . . 1 . . . . . . Liberate 3 | . . . . . . . 2 . . . . . . . . 1 . . . . . . Repair Stations 5 | . . . . . . . 2 . . 1 . . . . . 1 . . . . 1 . Patch 1 | . . . . . . . . . . . . . . . . 1 . . . . . . Recycling Units 4 | . . . 4 . . . . . . . . . . . . . . . . . . . Reject 3 | . . . 3 . . . . . . . . . . . . . . . . . . . Mask 1 | . . . 1 . . . . . . . . . . . . . . . . . . . Scrapoids 4 | . . . . . . . 2 . . 1 . . . . . . . . . . 1 . Scanalyzers 1 | . . . . . . . . . . . . . . . . . . . 1 . . . Researchers 1 | . . . . . . . . . . . . . . . . . . . 1 . . . Garrison Access . | . . . . . . . . . . . . . . . . . . . . . . . Data Cores Recovered 1 | . . . . . . . 1 . . . . . . . . . . . . . . . Used . | . . . . . . . . . . . . . . . . . . . . . . . Hacking Detections 103 | . 6 . 9 . 13 . 19 . . 3 . . . . 3 10 10 7 7 4 12 . Full Trace Events 7 | . 1 . . . 2 . . . . . . . . . . 1 1 . . . 2 . Feedback Events . | . . . . . . . . . . . . . . . . . . . . . . . Feedback Blocked . | . . . . . . . . . . . . . . . . . . . . . . . Robot Schematics Acquired 10 | . . . . . . . . . . . . . . . . 9 . 1 . . . . Robots Built 2 | . . . . . . . 2 . . . . . . . . . . . . . . . Authchips . | . . . . . . . . . . . . . . . . . . . . . . . Time 152 | . . . . . . . 152 . . . . . . . . . . . . . . . Total Robot Build Rating 10 | . . . . . . . 10 . . . . . . . . . . . . . . . Part Schematics Acquired 17 | . . . . . . . . . . . . . 4 . . 10 . 3 . . . . Parts Built 2 | . . . . . . . 2 . . . . . . . . . . . . . . . Authchips . | . . . . . . . . . . . . . . . . . . . . . . . Time 117 | . . . . . . . 117 . . . . . . . . . . . . . . . Total Part Build Rating 14 | . . . . . . . 14 . . . . . . . . . . . . . . . Parts Repaired 3 | . . . . . . . 2 . . . . . . . . 1 . . . . . . Time 132 | . . . . . . . 94 . . . . . . . . 38 . . . . . . Parts Recycled . | . . . . . . . . . . . . . . . . . . . . . . . Recycled Matter . | . . . . . . . . . . . . . . . . . . . . . . . Retrieved Matter . | . . . . . . . . . . . . . . . . . . . . . . . Retrieved Components 26 | . 14 . . . . . 10 . . . . . . . . . 2 . . . . . Parts Scanalyzed 1 | . . . . . . . 1 . . . . . . . . . . . . . . . Part Schematics Acquired . | . . . . . . . . . . . . . . . . . . . . . . . Parts Damaged . | . . . . . . . . . . . . . . . . . . . . . . . Bothacking | -11 -10 -10 -7 -7 -5 -5 -5 -5 -5 -4 -4 -4 -4 -3 -3 -3 -2 -2 -2 -1 -1 -1 ------------ Run | Yrd Mat Sub Rec Scr Fac Was Fac Upp Upp Fac Upp Upp Zhi Pro Res Tes Res Qua Sec Acc Com Ac0 Used RIF Installer . | . . . . . . . . . . . . . . . . . . . . . . . Robots Hacked 4 | . . . . . . . . . . . . . . . . 3 . 1 . . . . Non-combat . | . . . . . . . . . . . . . . . . . . . . . . . Combat . | . . . . . . . . . . . . . . . . . . . . . . . Robot Hacks Applied . | . . . . . . . . . . . . . . . . . . . . . . . Manual 4 | . . . . . . . . . . . . . . . . 3 . 1 . . . . Relay Couplers Released 8 | . . . . . 2 . . . . . . . . . . 4 . . 2 . . . Machine Destruction 4 | . . . . . 2 . . . . . . . . . . . . . 2 . . . Programmers 4 | . . . . . . . . . . . . . . . . 4 . . . . . . Fabnet Peak Effective % . | . . . . . . . . . . . . . . . . . . . . . . . Robots Rewired 4 | . . . . . . . . . . 4 . . . . . . . . . . . . Allies Hacked 4 | . . . . . . . . . . . . 1 . 1 . . . . . . 2 . Hacks Repelled . | . . . . . . . . . . . . . . . . . . . . . . . Allies | -11 -10 -10 -7 -7 -5 -5 -5 -5 -5 -4 -4 -4 -4 -3 -3 -3 -2 -2 -2 -1 -1 -1 -------- Run | Yrd Mat Sub Rec Scr Fac Was Fac Upp Upp Fac Upp Upp Zhi Pro Res Tes Res Qua Sec Acc Com Ac0 Total Allies 169 | . . . . 1 . 1 12 . . 9 . . . . . 3 . . . 21 122 . Largest Group 68 | . . . . 1 1 1 5 . . 8 7 5 1 1 . 3 . . . 7 68 . Highest-Rated Group 1812 | . . . . 57 57 31 238 . . 401 354 258 47 47 . 141 . . . 102 1812 . Highest-Rated Ally 234 | . . . . 57 57 31 50 . . 65 65 65 47 47 . 47 . . . 15 234 . Total Orders 4 | . . . . . . . . . . 1 . 3 . . . . . . . . . . STAY 2 | . . . . . . . . . . . . 2 . . . . . . . . . . FOLLOW 2 | . . . . . . . . . . 1 . 1 . . . . . . . . . . Ally Attacks 820 | . . . . . 25 . 105 . . 84 12 31 . 6 . 13 . . . 48 496 . Total Damage 19267 | . . . . . 701 . 3147 . . 2396 370 514 . 89 . 423 . . . 851 10776 . Kills 99 | . . . . . 8 . 19 . . 17 3 4 . 2 . 1 . . . 5 40 . Allies Corrupted 8 | . . . . . . . 2 . . . . 1 . . . 1 . . . . 4 . Allies Melted . | . . . . . . . . . . . . . . . . . . . . . . . Intel | -11 -10 -10 -7 -7 -5 -5 -5 -5 -5 -4 -4 -4 -4 -3 -3 -3 -2 -2 -2 -1 -1 -1 ------- Run | Yrd Mat Sub Rec Scr Fac Was Fac Upp Upp Fac Upp Upp Zhi Pro Res Tes Res Qua Sec Acc Com Ac0 Robot Analysis Total 11 | . 4 . . . . . 1 . . . . . 4 . . . . . 1 . 1 . Derelict Logs Recovered 7 | . . . . 3 . . . 1 2 . . 1 . . . . . . . . . . Drone Launches . | . . . . . . . . . . . . . . . . . . . . . . . Drone Recoveries . | . . . . . . . . . . . . . . . . . . . . . . . Exploration | -11 -10 -10 -7 -7 -5 -5 -5 -5 -5 -4 -4 -4 -4 -3 -3 -3 -2 -2 -2 -1 -1 -1 ------------- Run | Yrd Mat Sub Rec Scr Fac Was Fac Upp Upp Fac Upp Upp Zhi Pro Res Tes Res Qua Sec Acc Com Ac0 Turns Passed 23557 | 128 1277 4795 1216 3696 1926 22 1162 523 267 436 479 619 70 389 487 1361 411 627 1067 426 1722 451 Spaces Moved 26233 | 61 666 2514 738 2489 1180 72 2136 1006 909 731 1101 1364 151 939 509 1495 829 976 1322 546 3434 1065 Core 6 | 6 . . . . . . . . . . . . . . . . . . . . . . Treads 4808 | 55 666 2514 738 835 . . . . . . . . . . . . . . . . . . Legs 7864 | . . . . 1654 959 . . . . . . . . . . . . . 213 546 3427 1065 Wheels . | . . . . . . . . . . . . . . . . . . . . . . . Hover 4674 | . . . . . . . . . . . . . . . 277 1495 829 976 1097 . . . Flight 8862 | . . . . . 221 72 2136 1006 909 731 1101 1364 151 939 232 . . . . . . . Fastest Speed 21 | 50 160 160 160 130 31 27 27 28 28 29 29 29 29 29 29 33 21 28 30 30 30 30 Average Speed 65 | 149 160 160 160 140 113 30 30 28 28 29 29 29 29 29 49 43 35 39 39 30 30 30 Slowest Speed 260 | 160 160 160 160 160 260 31 103 28 28 114 29 29 29 29 180 55 84 115 115 30 30 30 Overloaded Moves 78 | . . . . . . 9 8 . . . . . . . . . 12 41 8 . . . Propulsion Burnouts . | . . . . . . . . . . . . . . . . . . . . . . . Robots Hopped 33 | . . . . . 3 . 15 . . 10 . . . . 2 . . . . . 3 . Cave-ins Triggered . | . . . . . . . . . . . . . . . . . . . . . . . Teleports 3 | . . . . . . . . . . . . . . . . . . . 1 . 1 1 Spacefolds 5 | . . . . . . . . . . . . . . . . . . . 3 . 2 . Exploration Rate (%) 65 | 5 78 91 98 89 26 80 49 84 97 21 97 99 60 94 11 93 30 84 57 20 86 62 Regions Visited 22 Branch Regions 14 Pre-discovered Areas 6 | . . . . . . . . . 2 . . 1 3 . . . . . . . . . Known Exits Taken 13 | . . . . . . . 1 1 1 1 1 1 1 1 1 1 1 1 1 . . . Unknown Exits Taken 7 | 1 1 1 1 1 . . . . . . . . . . . . . . . 1 1 . Scrap Searched 26 | . . 8 . 4 . . . 2 3 . 3 5 . 1 . . . . . . . . Spaces Dug 171 | . . 1 . . 31 . 21 12 . . . 22 . 12 3 4 9 4 15 12 16 9 Terrain Destroyed 772 | . 34 3 . . 223 . 50 60 . 26 . 59 . 34 45 32 70 4 15 12 72 33 Melee 63 | . . . . . 1 . 19 . . . . . . . . 4 9 4 14 4 7 1 Projectile 153 | . . 1 . . 16 . 2 1 . . . 15 . 11 1 . . . 1 8 65 32 AOE 551 | . 34 2 . . 206 . 29 59 . 26 . 44 . 23 40 27 61 . . . . . Terrain Rammed . | . . . . . . . . . . . . . . . . . . . . . . . Walls Destroyed . | . . . . . . . . . . . . . . . . . . . . . . . Machines Disabled . | . . . . . . . . . . . . . . . . . . . . . . . Actions | -11 -10 -10 -7 -7 -5 -5 -5 -5 -5 -4 -4 -4 -4 -3 -3 -3 -2 -2 -2 -1 -1 -1 --------- Run | Yrd Mat Sub Rec Scr Fac Was Fac Upp Upp Fac Upp Upp Zhi Pro Res Tes Res Qua Sec Acc Com Ac0 Total 30825 | 83 779 3155 765 2710 1592 71 2544 1198 920 878 1243 1539 177 1030 668 1919 893 1158 1616 796 3938 1153 Wait 2703 | 1 31 535 12 175 181 . 337 125 11 57 120 132 14 58 59 135 7 93 81 205 331 3 Move 26135 | 60 665 2513 737 2488 1175 71 2106 1005 908 711 1100 1363 150 938 504 1494 828 975 1312 545 3423 1064 Hop 29 | . . . . . 2 . 14 . . 9 . . . . 2 . . . . . 2 . Pick Up 165 | 8 12 9 3 20 37 . 4 3 . 6 1 1 3 2 3 14 1 10 14 5 5 4 Fast Attach 167 | 6 2 . 1 2 21 . 7 2 . 7 . 4 3 6 12 30 9 9 23 8 12 3 Attach 64 | . 2 . . 2 9 . . 1 . 1 1 . 1 . 3 8 1 . 12 5 11 7 Detach 64 | . . . . 4 5 . . . . 1 . . . 2 4 12 2 1 9 6 14 4 Swap 217 | . 8 24 2 . 20 . 21 13 1 13 5 14 1 6 9 32 5 16 19 1 5 2 Drop 216 | . 7 13 4 19 36 . 7 5 . 6 1 2 5 4 4 29 8 18 18 9 13 8 Fire 546 | 6 49 61 5 . 91 . 11 44 . 58 15 23 . 12 49 55 2 6 7 5 27 20 Melee 478 | . . . . . 14 . 37 . . . . . . . . 108 30 30 121 7 93 38 Ram . | . . . . . . . . . . . . . . . . . . . . . . . Kick 2 | . . . . . 1 . . . . . . . . . . . . . . . 1 . Crush 5 | 2 3 . . . . . . . . . . . . . . . . . . . . . Escape Stasis 20 | . . . . . . . . . . . . . . . 18 2 . . . . . . Rewire 11 | . . . . . . . . . . 9 . . . 1 . . . . . . 1 . Trap 2 | . . . 1 . . . . . . . . . . . 1 . . . . . . . Miscellaneous 1 | . . . . . . . . . . . . . . 1 . . . . . . . . Route ------- -11/Scrapyard -10/Materials (discovered 5 exits: [*Mat x2] / [*Min x2] / *Sub) -10/Subcaves (discovered 3 exits: [*Mat x2] / *Rec) -7/Recycling (discovered 2 exits: *Fac / *Scr) -7/Scraptown -5/Factory (discovered 2 exits: Upp x2) -5/Waste -5/Factory (discovered 4 exits: *Fac x2 / *Upp x2) -5/Upper Caves -5/Upper Caves (discovered 2 exits: *Fac / *War) -4/Factory (discovered 4 exits: *Res / *Upp x2 / Arm) -4/Upper Caves -4/Upper Caves (discovered 2 exits: *Res / *Zhi) -4/Zhirov -3/Proximity Caves -3/Research -3/Testing -2/Research (discovered 3 exits: *Acc / *Qua x2) -2/Quarantine (discovered 2 exits: *Acc / *Sec) -2/Section 7 -1/Access -1/Command (discovered 3 exits: [*Sur x2] / [*Ac0]) -1/Access_0 Near Former Tau Ceti IV History --------- Turn | Location | Event 6 | -11/Scrapyard | Discovered new exit (range 13) 129 | -11/Scrapyard | Entered Materials 306 | -10/Materials | Build established: Mutant 362 | -10/Materials | Discovered new exit (range 8) 549 | -10/Materials | Discovered new exit (range 12) 778 | -10/Materials | Discovered new exit (range 16) 829 | -10/Materials | Discovered new exit (range 15) 1387 | -10/Materials | Discovered new exit (range 10) 1406 | -10/Materials | Entered Subcaves 1540 | -10/Subcaves | Discovered new exit (range 13) 1745 | -10/Subcaves | A swath of the cavern ceiling suddenly collapsed 2486 | -10/Subcaves | Shifting Twisted Machinery released Scrap Shield 2493 | -10/Subcaves | Shifting Twisted Machinery released Sub. Laser 2762 | -10/Subcaves | Visited 4L-MR0's lab 3035 | -10/Subcaves | Shifting Twisted Machinery released Sub. Beam Cannon 3253 | -10/Subcaves | Discovered new exit (range 9) 3335 | -10/Subcaves | Shifting Twisted Machinery released Sub. Monowheel 3430 | -10/Subcaves | Build established: Scavenger-Mutant 3742 | -10/Subcaves | Shifting Twisted Machinery released Sub. Laser 3860 | -10/Subcaves | Shifting Twisted Machinery released Piercing Trap 5729 | -10/Subcaves | Build established: Mutant 6036 | -10/Subcaves | Found Cargo Legs 6197 | -10/Subcaves | Discovered new exit (range 3) 6201 | -10/Subcaves | Entered Recycling 6202 | -7/Recycling | Joined Warlord attack on 0b10 via Recycling 6915 | -7/Recycling | Discovered new exit (range 16) 7366 | -7/Recycling | Scanned before Scraplab entrance 7400 | -7/Recycling | Entered Scraplab 7414 | -7/Recycling | Discovered new exit (range 3) 7417 | -7/Recycling | Entered Scraptown 7440 | -7/Scraptown | Heard Great Nut preacher, LISTEN AND RECITE! 7662 | -7/Scraptown | Discovered new exit (range 11) 7737 | -7/Scraptown | Scanned Subdweller tech in exchange for log data 7741 | -7/Scraptown | Learned location of 1 exit from Research 7744 | -7/Scraptown | Learned Factory stockpile data 7782 | -7/Scraptown | Visited Comm Corps 7821 | -7/Scraptown | Visited Awakened 7870 | -7/Scraptown | Visited Spacefarers 7889 | -7/Scraptown | Visited Cyclists 7909 | -7/Scraptown | Visited Fellowship of the Rings 7971 | -7/Scraptown | Visited Assassins FH 7984 | -7/Scraptown | Visited Cave Peace 8011 | -7/Scraptown | Visited UFD Registry 8011 | -7/Scraptown | Registered with UFD as "Dualforce" 8281 | -7/Scraptown | Visited Scrap Suit Storage 8315 | -7/Scraptown | Visited Scrapoid Research Area 8377 | -7/Scraptown | Visited Derelict Rescue Squad 8401 | -7/Scraptown | Visited Research Penetration Think Tank 8429 | -7/Scraptown | Visited A0-MCA Data Center 8438 | -7/Scraptown | Given a B rating by A0-MCA 8469 | -7/Scraptown | Visited Supply Room 8493 | -7/Scraptown | Visited Infowarlord's Domain 8521 | -7/Scraptown | Visited Botcube Research 8545 | -7/Scraptown | Visited Science Guys 8598 | -7/Scraptown | Visited Abandonware Association 8609 | -7/Scraptown | Learned abandonware demo "OVRCLOCK.EXE" 8621 | -7/Scraptown | Learned abandonware demo "REBOOT5.EXE" 8720 | -7/Scraptown | Delivered Scrap Shield to a Scientist 8756 | -7/Scraptown | Attached Cargo Legs, gained temporary slots: Utility x2 8984 | -7/Scraptown | Found Botcube 9179 | -7/Scraptown | Found DRS Beacon 9234 | -7/Scraptown | Found Scrap Suit 9238 | -7/Scraptown | Found Scrap Suit 9718 | -7/Scraptown | Entered Cyclist Reading Room 10287 | -7/Scraptown | Found Exp. Signal Interpreter 10331 | -7/Scraptown | Found A0-MCA's Component Scanner 10385 | -7/Scraptown | Botcube activated 10405 | -7/Scraptown | Botcube completed mutation into treaded form, armed with 1 gun, 1 cannon. 11113 | -7/Scraptown | Entered Factory 11113 | -5/Factory | Accompanied by 1 ally 11113 | -5/Factory | Evolved 10 slots: Power x1, Propulsion x4, Utility x5 11424 | -5/Factory | Build established: Infiltrator-Mutant 11496 | -5/Factory | Identified exit to Upper Caves 11599 | -5/Factory | Lost 3 parts (1p1u1w) 11671 | -5/Factory | Found Botcube 11911 | -5/Factory | Destroyed 7 combat bots 12138 | -5/Factory | Build established: Hacker-Mutant 12576 | -5/Factory | Build established: Scavenger-Mutant 12613 | -5/Factory | First assault squad dispatched 12989 | -5/Factory | Found Exp. Targeting Computer 13039 | -5/Factory | Manually triggered Chute Trap 13039 | -5/Factory | Sucked down chute 13039 | -5/Factory | Entered Waste 13040 | -5/Waste | Met a frightened Derelict 13047 | -5/Waste | Spotted C-40 Crusher 13052 | -5/Waste | Spotted C-40 Crusher 13054 | -5/Waste | EMP discharged 13054 | -5/Waste | System corruption reached 10% 13055 | -5/Waste | Spotted C-40 Crusher 13055 | -5/Waste | Spotted C-40 Crusher 13056 | -5/Waste | Discovered new exit (range 16) 13056 | -5/Waste | Spotted C-40 Crusher 13061 | -5/Waste | Identified exit to Factory 13061 | -5/Waste | Entered Factory 13217 | -5/Factory | Build established: Sprinter 13246 | -5/Factory | Repaired Hyp. Gauss Cannon 13335 | -5/Factory | Scrapoid reinforcements arrived 13361 | -5/Factory | First assault squad dispatched 13410 | -5/Factory | Fabricated E-15 Imp? 13412 | -5/Factory | Lost 4 allies 13661 | -5/Factory | Search patrols dispatched 13681 | -5/Factory | Discovered new exit (range 13) 13749 | -5/Factory | Scrapoid reinforcements arrived 13825 | -5/Factory | Lost 3 allies 13882 | -5/Factory | Repaired Lgt. Deuterium Engine? 13956 | -5/Factory | Core integrity fell below 50% 13989 | -5/Factory | Discovered new exit (range 10) 14162 | -5/Factory | Fabricated Adv. Reaction Control System? 14223 | -5/Factory | Entered Upper Caves 14225 | -5/Upper Caves | UFD Scientist delivered a prototype 14227 | -5/Upper Caves | Found Enh. Scrap Shield 14350 | -5/Upper Caves | Attracted the attention of an 0b10 checkpoint 14514 | -5/Upper Caves | Discovered new exit (range 3) 14516 | -5/Upper Caves | Identified exit to Upper Caves 14673 | -5/Upper Caves | Learned location of 1 exit from Factory 14682 | -5/Upper Caves | Found Alien Artifact 14682 | -5/Upper Caves | Identified Dimensional Node Initializer 14682 | -5/Upper Caves | Initialized slip node 14746 | -5/Upper Caves | Entered another Upper Caves area 14756 | -5/Upper Caves | Discovered new exit (range 15) 14760 | -5/Upper Caves | Identified exit to Factory 14868 | -5/Upper Caves | Learned location of Armory (-4) 14888 | -5/Upper Caves | Learned location of Warlord (-5) 14942 | -5/Upper Caves | Discovered new exit (range 12) 14949 | -5/Upper Caves | Identified exit to Warlord 15013 | -5/Upper Caves | Entered Factory 15013 | -4/Factory | Evolved 2 slots: Propulsion x1, Utility x1 15014 | -4/Factory | Identified exit to Armory 15015 | -4/Factory | Identified exit to Upper Caves 15128 | -4/Factory | Found Exp. Targeting Computer 15136 | -4/Factory | Spotted B-86 Titan 15263 | -4/Factory | First assault squad dispatched 15310 | -4/Factory | Scrapoid reinforcements arrived 15411 | -4/Factory | Discovered new exit (range 11) 15449 | -4/Factory | Entered Upper Caves 15449 | -4/Upper Caves | Accompanied by 7 allies 15574 | -4/Upper Caves | Build established: Commander-Sprinter 15889 | -4/Upper Caves | Discovered new exit (range 5) 15917 | -4/Upper Caves | Identified exit to Upper Caves 15928 | -4/Upper Caves | Entered another Upper Caves area 15928 | -4/Upper Caves | Accompanied by 5 allies 15944 | -4/Upper Caves | Discovered new exit (range 13) 15968 | -4/Upper Caves | Identified exit to Research 16022 | -4/Upper Caves | Learned 8 Research zone layouts 16255 | -4/Upper Caves | Attracted the attention of an 0b10 checkpoint 16293 | -4/Upper Caves | Ambushed by research squad 16339 | -4/Upper Caves | Lost 3 parts (2p1u) 16348 | -4/Upper Caves | Encountered a Warlord checkpoint 16493 | -4/Upper Caves | Learned Research stockpile data 16493 | -4/Upper Caves | Learned Extension stockpile data 16493 | -4/Upper Caves | Learned Armory stockpile data 16493 | -4/Upper Caves | Learned Armory terminal intel 16526 | -4/Upper Caves | Discovered new exit (range 15) 16544 | -4/Upper Caves | Identified exit to Zhirov 16547 | -4/Upper Caves | Entered Zhirov 16547 | -4/Zhirov | Accompanied by 1 ally 16549 | -4/Zhirov | Discovered new exit (range 3) 16554 | -4/Zhirov | Met Zhirov 16560 | -4/Zhirov | Learned location of Quarantine (-2) 16560 | -4/Zhirov | Learned location of Testing (-3) 16560 | -4/Zhirov | Learned location of Command (-1) 16562 | -4/Zhirov | Zhirov requested help retrieving the SGEMP Prototype 16567 | -4/Zhirov | Found Alien Artifact 16567 | -4/Zhirov | Identified Integrated Dissipator 16567 | -4/Zhirov | Installed Integrated Dissipator, increased core heat dissipation (+20) 16584 | -4/Zhirov | Found Alien Artifact 16599 | -4/Zhirov | Identified exit to Proximity Caves 16617 | -4/Zhirov | Entered Proximity Caves 16617 | -3/Proximity Caves | Accompanied by 1 ally 16636 | -3/Proximity Caves | Encountered a Derelict sapper outpost 16643 | -3/Proximity Caves | Activated DRS Beacon 16682 | -3/Proximity Caves | Build established: Sprinter 16745 | -3/Proximity Caves | Murdered 3 allies 17006 | -3/Proximity Caves | Entered Research 17006 | -3/Research | Evolved 2 slots: Propulsion x1, Utility x1 17007 | -3/Research | Identified exit to Testing 17247 | -3/Research | Lost 6 parts (2p2n1u1w) 17493 | -3/Research | Entered Testing 17538 | -3/Testing | Build established: Scavenger-Mutant 17646 | -3/Testing | Found SHELL Armor 17775 | -3/Testing | Protovariant out of control (PD-2BP6QLAY07) 17775 | -3/Testing | Unleashed a protovariant (PD-2BP6QLAY07) 17775 | -3/Testing | Protovariant out of control (PP-PZ39YFJIT8) 17775 | -3/Testing | Unleashed a protovariant (PP-PZ39YFJIT8) 17791 | -3/Testing | Repaired Imp. Propulsion Shielding? 17955 | -3/Testing | Found Null Cannon 18153 | -3/Testing | Spotted Striker 18168 | -3/Testing | Spotted Striker 18191 | -3/Testing | Destroyed Striker 18276 | -3/Testing | Lost 4 parts (1p2n1w) 18305 | -3/Testing | Destroyed Striker 18335 | -3/Testing | Spotted Alpha 7 18351 | -3/Testing | Core integrity fell below 50% 18367 | -3/Testing | Destroyed Alpha 7 18384 | -3/Testing | Lost 3 parts (1n1u1w) 18386 | -3/Testing | Stole the SGEMP Prototype 18500 | -3/Testing | Discovered new exit (range 16) 18583 | -3/Testing | Build established: Scavenger-Gladiator 18727 | -3/Testing | System corruption reached 10% 18731 | -3/Testing | Found Corrupted Gui. Remote Datajack 18761 | -3/Testing | Lost 3 allies 18818 | -3/Testing | Found Hyp. Multirail 18828 | -3/Testing | Found Tactical Quantum Warhead 18848 | -3/Testing | Found Omega Cannon 18854 | -3/Testing | Identified exit to Research 18854 | -3/Testing | Entered Research 18854 | -2/Research | Evolved 2 slots: Power x1, Utility x1 19176 | -2/Research | Spotted B-90 Cyclops 19185 | -2/Research | Destroyed 7 combat bots 19229 | -2/Research | Identified exit to Quarantine 19250 | -2/Research | Discovered new exit (range 14) 19263 | -2/Research | Spotted B-90 Cyclops 19265 | -2/Research | Entered Quarantine 19273 | -2/Quarantine | Found Alien Artifact 19486 | -2/Quarantine | Found Exp. Melee Analysis Suite 19515 | -2/Quarantine | First assault squad dispatched 19533 | -2/Quarantine | Found Alien Artifact 19533 | -2/Quarantine | Identified Core Reset Matrix 19533 | -2/Quarantine | Identified Transdimensional Reconstructor 19533 | -2/Quarantine | Identified Subatomic Replicator 19533 | -2/Quarantine | Used Core Reset Matrix 19537 | -2/Quarantine | Detected hypermatrix surge 19537 | -2/Quarantine | Sensed 13 artifacts in vicinity 19753 | -2/Quarantine | Found Sigix Broadsword 19790 | -2/Quarantine | Found Dimensional Node Initializer 19793 | -2/Quarantine | Found Hpw. Transdimensional Reconstructor 19807 | -2/Quarantine | Discovered new exit (range 10) 19822 | -2/Quarantine | Found Phase Redirector 19860 | -2/Quarantine | Spotted Fortress 19885 | -2/Quarantine | Discovered new exit (range 5) 19887 | -2/Quarantine | Identified exit to Section 7 19892 | -2/Quarantine | Entered Section 7 19893 | -2/Section 7 | Sensed 21 artifacts in vicinity 19955 | -2/Section 7 | Identified exit to Access 20037 | -2/Section 7 | Initialized slip node 20040 | -2/Section 7 | Found Integrity Redistributor 20099 | -2/Section 7 | Build established: Alien-Gladiator 20145 | -2/Section 7 | Garrison activated, responded to threat 20243 | -2/Section 7 | Spotted S7 Guard 20252 | -2/Section 7 | Found Core Membrane 20252 | -2/Section 7 | Installed Core Membrane, gained immunity to corruption 20284 | -2/Section 7 | Used Integrity Redistributor, redistributed integrity from core (-143) 20298 | -2/Section 7 | Destroyed S7 Guard 20343 | -2/Section 7 | Found Spacefold Activator 20358 | -2/Section 7 | Found Integrity Redistributor 20392 | -2/Section 7 | First assault squad dispatched 20430 | -2/Section 7 | Found Microwarp Drive 20655 | -2/Section 7 | Core integrity fell below 50% 20668 | -2/Section 7 | Found Integrated Reactor 20668 | -2/Section 7 | Installed Integrated Reactor, increased core energy generation (+10) 20670 | -2/Section 7 | Found Integrated Reactor 20670 | -2/Section 7 | Installed Integrated Reactor, increased core energy generation (+10) 20672 | -2/Section 7 | Found Integrated Reactor 20672 | -2/Section 7 | Installed Integrated Reactor, increased core energy generation (+10) 20720 | -2/Section 7 | Found LRC Inertial Stabilizer 20720 | -2/Section 7 | Installed LRC Inertial Stabilizer, increased mass support (+10) 20724 | -2/Section 7 | Found LRC Inertial Stabilizer 20724 | -2/Section 7 | Installed LRC Inertial Stabilizer, increased mass support (+10) 20726 | -2/Section 7 | Found LRC Matter Compressor 20726 | -2/Section 7 | Installed LRC Matter Compressor, increased matter storage capacity (+125) 20817 | -2/Section 7 | Integrated with Sigix Exoskeleton 20836 | -2/Section 7 | Warped through subspace to slip node 20844 | -2/Section 7 | Spotted S7 Guard 20866 | -2/Section 7 | Found Integrated Dissipator 20866 | -2/Section 7 | Installed Integrated Dissipator, increased core heat dissipation (+20) 20932 | -2/Section 7 | Found Core Regenerator 20959 | -2/Section 7 | Entered Access 20959 | -1/Access | Evolved 2 slots: Utility x2 20964 | -1/Access | Emitted hypermatrix ping 20969 | -1/Access | Assembled emerged from beneath the floor 21068 | -1/Access | Lost 7 allies 21116 | -1/Access | Found Quantum Capacitor 21126 | -1/Access | Build established: Alien-Sigix 21190 | -1/Access | Assembled emerged from beneath the floor 21245 | -1/Access | Lost 3 allies 21348 | -1/Access | Assembled emerged from beneath the floor 21350 | -1/Access | Found Unknown Device 21350 | -1/Access | Identified Adv. Force Booster 21358 | -1/Access | Discovered new exit (range 16) 21385 | -1/Access | Entered Command 21385 | -1/Command | Accompanied by 7 allies 21390 | -1/Command | Emitted hypermatrix ping 21395 | -1/Command | Assembled emerged from beneath the floor 21420 | -1/Command | Assembled emerged from beneath the floor 21468 | -1/Command | Disengaged cave seal 21477 | -1/Command | Disengaged cave seal 21477 | -1/Command | Assembled emerged from the dark tunnel 21512 | -1/Command | Assembled emerged from beneath the floor 21525 | -1/Command | Assembled emerged from beneath the floor 21527 | -1/Command | Discovered new exit (range 18) 21531 | -1/Command | Lost 5 allies 21540 | -1/Command | Scrapoid reinforcements arrived 21582 | -1/Command | Lost 5 allies 21583 | -1/Command | Assembled emerged from beneath the floor 21596 | -1/Command | Phase Generator disabled 21657 | -1/Command | P-80 Master assimilated allied 01C22-D 21670 | -1/Command | Spotted Striker 21675 | -1/Command | Spotted Alpha 7 21676 | -1/Command | Allies destroyed Striker 21681 | -1/Command | Allies destroyed Alpha 7 21708 | -1/Command | Found Prototype Processor 21708 | -1/Command | Identified Exp. Core Analyzer 21712 | -1/Command | Lost 10 allies 21721 | -1/Command | Assembled emerged from beneath the floor 21736 | -1/Command | Spotted M Guard 21736 | -1/Command | Spotted M Guard 21737 | -1/Command | Spotted Combat Programmer 21737 | -1/Command | Spotted Combat Programmer 21747 | -1/Command | Destroyed Combat Programmer 21748 | -1/Command | Combat Programmer assimilated allied 01C19-D 21749 | -1/Command | Combat Programmer assimilated allied 01C21-D 21762 | -1/Command | Allies destroyed Combat Programmer 21778 | -1/Command | Destroyed M Guard 21796 | -1/Command | Destroyed M Guard 21796 | -1/Command | All MAIN.C guards destroyed 21817 | -1/Command | Lost 30 allies 22074 | -1/Command | Met MAIN.C 22087 | -1/Command | 0b10 Conduit disabled 22105 | -1/Command | MAIN.C's shell transforms into a squad of autonomous robots 22105 | -1/Command | Destroyed MAIN.C Shell 22105 | -1/Command | Spotted M Shell/Def 22105 | -1/Command | Spotted M Shell/Atk 22105 | -1/Command | Spotted M Shell/Def 22105 | -1/Command | Spotted M Shell/Atk 22105 | -1/Command | Spotted M Shell/Atk 22105 | -1/Command | Spotted M Shell/Def 22105 | -1/Command | Spotted M Shell/Atk 22105 | -1/Command | Spotted M Shell/Def 22108 | -1/Command | MAIN.C activated Command garrisons 22109 | -1/Command | Sigix Exoskeleton integrity reduced to 80% 22115 | -1/Command | Used Core Regenerator, restored core integrity (+400) 22118 | -1/Command | Discovered new exit (range 18) 22210 | -1/Command | Destroyed MAIN.C 22212 | -1/Command | Discovered new exit (range 45) 22212 | -1/Command | Discovered new exit (range 119) 22212 | -1/Command | Extracted map data and part IDs from MAIN.C's data core 22214 | -1/Command | Found Exp. Powered Armor 22227 | -1/Command | Sigix Exoskeleton integrity reduced to 60% 22237 | -1/Command | Destroyed M Shell/Atk 22240 | -1/Command | Found Exp. Weapon Cycler 22450 | -1/Command | Found Zero-point Reactor 22459 | -1/Command | Used Subatomic Replicator to replicate Adv. Reaction Control System 22752 | -1/Command | Found Exp. Core Analyzer 22832 | -1/Command | Found Exp. Targeting Computer 22952 | -1/Command | Assembled emerged from beneath the floor 23103 | -1/Command | Warped through subspace to slip node 23103 | -1/Command | Discovered new exit (range 4) 23107 | -1/Command | Entered Access_0 23108 | -1/Access_0 | Sensed 4 artifacts in vicinity 23108 | -1/Access_0 | Met Architect 23132 | -1/Access_0 | Destroyed A8 23177 | -1/Access_0 | A6 warped into view 23192 | -1/Access_0 | Destroyed A6 23193 | -1/Access_0 | Found Corrupted Femtoactuators 23233 | -1/Access_0 | Subspace Access Node disabled 23245 | -1/Access_0 | A5 warped into view 23253 | -1/Access_0 | Core integrity fell below 50% 23258 | -1/Access_0 | Destroyed A5 23316 | -1/Access_0 | Sigix Exoskeleton integrity reduced to 40% 23322 | -1/Access_0 | Subspace Access Node disabled 23343 | -1/Access_0 | A4 warped into view 23356 | -1/Access_0 | Subspace Access Node disabled 23424 | -1/Access_0 | Subspace Access Node disabled 23496 | -1/Access_0 | Sigix Exoskeleton integrity reduced to 20% 23552 | -1/Access_0 | Destroyed Architect 23553 | -1/Access_0 | Architect triggered a singularity event 23553 | -1/Access_0 | Extracted unknown sensor trigger ID from Architect's data core 23554 | -1/Access_0 | Core integrity fell below 20% 23555 | -1/Access_0 | Found Hpw. Transdimensional Reconstructor 23555 | -1/Access_0 | Warped through subspace to slip node 23555 | -1/Access_0 | Discovered new exit (range 8) 23558 | *** | Escaped singularity! Last Messages --------------- 23549_ Slug penetrates Earth. 23552_ Architect: "If I can't win, no one wins!" 23552_ Architect destroyed. 23553_ A0_COM: Initiating irreversible singularity event. Goodbye. 23553_ Acquired data core, extracted unknown sensor trigger ID. 23553_ Penetrated by HV Slug. 23553_ HV Slug penetrates A4. 23553_ A4 knocked back. 23553_ HV Slug penetrates A4. 23553_ Enhanced Sentry suffers critical hit (Destroy). 23554_ A0_COM: 10. 23555_ A0_COM: 9. 23555_ Acquired Hpw. Transdimensional Reconstructor. 23555_ Warped through subspace, drawn to slip node. 23555_ EXIT=FOUND 23556_ A0_COM: 8. 23557_ A0_COM: 7. 23558_ A0_COM: 6. Map ----- +----------------------------------------------------+ | | | | | | | | | | | | | | | | | | | | | | | | | | | | | | | | | ???????????#############################?????????? | | ???????????#############################?????????? | | ??????????###############################????????? | | ?????????#################################???????? | | ?????????#################################???????? | | ?????????#################################???????? | | ????????###################################??????? | | ????????################# #################??????? | | ????????################ ################??????? | | ????????################ X ################??????? | | ????????################ ################??????? | | ???????################ #################?????? | | ???????################ #################??????? | | ???????################# ################??????? | | ???????################ #################?????? | | ???????################ #################??????? | | ??????################# < ################??????? | | ???????################ #################??????? | | ???????################# #################??????? | | ???????####################################??????? | | ???????###################################???????? | | ???????###################################???????? | | ????????##################################???????? | | ????????#################################????????? | | ????????#################################????????? | | ?????????###############################?????????? | | ??????????#############################??????????? | | ??????????#############################??????????? | | ???????????###########################???????????? | | ????????????#########################????????????? | | ?????????????#######################?????????????? | | ???????????????###################???????????????? | | ????????????????#################????????????????? | | ???????????????????###########???????????????????? | +----------------------------------------------------+ Best States ------------- Heat Dissipation 162 Energy Generation 105 Energy Capacity 670 Matter Stores 425 Matter Capacity 425 Sight Range 22 Robot Scan Range 18 Terrain Scan Density 10 Jamming Range 14 Cloak Strength 4 Corruption Containment 16 Armor Coverage 900 Resistance: KI 50 Resistance: TH 50 Resistance: EX 50 Resistance: EM 50 Resistance: I 50 Resistance: S 50 Resistance: P 50 Propulsion Shielding 66 Point Defense Rating 240 Weapon Cycling 30 Melee Speed Boost 50 Phase Shifting 15 Evasion (%) 98 Targeting Accuracy 24 Melee Accuracy 20 Target Analysis 8 Core Analysis 8 Recoil Reduction 2 Matter Filtering 30 Salvage Targeting 4 Offensive Hacking 24 Defensive Hacking 14 Item Schematics ----------------- None Robot Schematics ------------------ None Fabricated ------------ E-15 Imp | x2 | -5/Factory | Preloaded Adv. Reaction Control System | x2 | -5/Factory | Preloaded Alien Tech Used ----------------- Dimensional Node Initializer Integrated Dissipator Core Reset Matrix Sigix Broadsword Phase Redirector Core Membrane Integrity Redistributor Spacefold Activator Integrated Reactor LRC Inertial Stabilizer LRC Matter Compressor Sigix Exoskeleton Sigix Sheargun Transdimensional Reconstructor Core Regenerator Subatomic Replicator High-powered Transdimensional Reconstructor Achievements -------------- None Challenges ------------ None Game ------ Seed TiamatMicroNukerbomber Manual? 0 Play Time 04:16:06 Cumulative 1696.0 hours Start 2024.09.22 @ 10:13:23 End 2024.09.22 @ 21:42:52 Sessions 5 Manual Loads 0 Difficulty Rogue Special Mode None Game No. 1156 Rogue 1152 Adventurer 4 Explorer 0 Win Type 6 Total 215 Types 160/11/15/9/3/1/4/8/4 Lore% 98 Gallery% 98 Achievement% 98 Wizard Run 0 Options --------- Layout 2 ASCII 0 Keyboard 1 Movement Vi Keybinds 0 Fullscreen 0 Font 24/Terminus Map View 59x48 Zoom Use 0% Tactical HUD 1 Map Filters NONE Filters NONE Steam 1 RUN: 2ad5160f-3c4b-43c7-8f54-1ecd8bb0f710